bitfinex-derivatives/quotes_SOLF0:USTF0_20220110
["timestamp","ask_amount","ask_price","bid_price","bid_amount"]
[1641812315587,6.61368065,140.92,140.86,35.3051]
[1641812315787,6.61368065,140.92,140.87,0.80378975]
[1641812316187,2.61368065,140.92,140.87,0.80378975]
[1641812316488,4.0,140.93,140.88,2.39809296]
[1641812316990,2.61370148,140.92,140.89,0.80378975]
[1641812317991,2.61370148,140.92,140.87,0.80378975]
[1641812319090,2.61370148,140.92,140.88,2.39800702]
[1641812320093,2.61370148,140.93,140.89,0.80378975]
[1641812320292,2.0,140.92,140.89,9.82978975]
[1641812320894,2.0,140.92,140.9,4.0]
[1641812321095,2.61370148,140.93,140.9,0.80378975]
[1641812321294,15.03995816,140.96,140.9,3.20179677]
[1641812321694,13.03995816,140.96,140.9,3.20179677]
[1641812321894,13.03995816,140.96,140.91,0.80378975]
[1641812322395,10.3110233,140.97,140.92,11.09144417]
[1641812322603,50.29484492,141.02,140.93,4.0]
[1641812322797,50.29484492,141.02,140.94,5.772]
[1641812322996,50.29484492,141.02,140.95,4.0]
[1641812323197,50.29484492,141.02,140.95,13.113]
[1641812323397,4.01626619,141.01,140.96,4.80378975]
[1641812323598,4.01626619,141.01,140.96,0.80378975]
[1641812323798,4.01626619,141.01,140.97,0.80378975]
[1641812324399,4.01626619,141.04,140.96,4.80378975]
[1641812324701,4.01626619,141.04,140.97,0.80378975]
[1641812325199,1.19621025,140.96,140.94,43.16163854]
[1641812325399,60.58292786,141.05,140.94,43.16163854]
[1641812325598,59.77922786,141.05,140.94,52.29863854]
[1641812325800,4.47586919,141.04,140.95,2.39009181]
[1641812326201,32.3407,141.05,140.95,2.39009181]
[1641812326202,32.3407,141.05,140.95,6.39009181]
[1641812326702,2.60514654,141.03,140.96,0.80326202]
[1641812327105,4.01631012,141.02,140.96,0.80326202]
[1641812328002,4.01631012,141.04,140.95,0.80326202]
[1641812328202,8.01631012,141.04,140.95,0.80326202]
[1641812328702,4.0,141.03,140.95,0.80326202]
[1641812328904,10.61856415,141.03,140.95,0.80326202]
[1641812329502,4.01631012,141.02,140.95,0.80326202]
[1641812329705,6.61856415,141.02,140.95,0.80326202]
[1641812330405,4.01631012,141.01,140.95,0.80326202]
[1641812330704,4.01631012,141.01,140.93,0.80326202]
[1641812331303,8.01631012,141.01,140.93,0.80326202]
[1641812331504,5.67451421,140.99,140.93,0.80326202]
[1641812332104,4.01631012,140.98,140.93,0.80326202]
[1641812339613,4.01631012,140.98,140.93,4.80326202]
[1641812339813,4.01631012,140.98,140.94,2.38676783]
[1641812340013,4.01631012,140.98,140.94,12.21302985]
[1641812340513,4.01631012,140.98,140.95,0.80326202]
[1641812341114,4.01631012,140.98,140.93,0.80326202]
[1641812342414,9.67513729,140.97,140.93,0.80326202]
[1641812343014,16.78713729,140.97,140.93,0.80326202]
[1641812343214,4.01631012,140.96,140.93,0.80326202]
[1641812343415,9.69181432,140.96,140.93,0.80326202]
[1641812344014,4.01631012,140.95,140.9,0.80326202]
[1641812346417,4.01631012,140.95,140.89,0.80326202]
[1641812346617,4.01631012,140.95,140.91,2.39022262]
[1641812346817,4.01631012,140.95,140.91,10.22522262]
[1641812347217,4.01631012,140.95,140.92,0.80326202]
[1641812348618,4.01631012,140.95,140.91,0.80326202]
[1641812348818,4.01631012,140.95,140.93,2.39489707]
[1641812349323,4.01631012,140.95,140.92,2.39489707]
[1641812349520,4.01631012,140.95,140.94,0.80326202]
[1641812350119,6.01631012,140.95,140.93,0.80326202]
[1641812350521,11.69214433,140.95,140.94,0.80326202]
[1641812350920,7.67583421,140.95,140.94,0.80326202]
[1641812351324,7.67583421,140.95,140.9,0.80326202]
[1641812351522,39.98382162,141.03,140.94,31.09043854]
[1641812351725,39.98382162,141.03,140.95,1.772]
[1641812351923,39.08382162,141.03,141.01,4.0]
[1641812352123,22.16382162,141.03,141.01,8.776]
[1641812352324,59.79567577,141.08,141.01,12.776]
[1641812352523,59.79567577,141.08,141.03,4.0]
[1641812352925,59.79567577,141.08,141.02,0.80326202]
[1641812353126,59.79567577,141.08,141.04,0.80326202]
[1641812353325,4.0,141.06,141.04,0.80326202]
[1641812353526,4.0,141.06,141.03,0.80326202]
[1641812353726,4.0,141.04,141.02,2.39127194]
[1641812353925,4.0,141.05,141.02,2.39127194]
[1641812354435,4.0,141.06,141.02,2.39127194]
[1641812354625,10.80554604,141.07,141.02,2.39127194]
[1641812354925,4.0,141.06,141.02,2.39127194]
[1641812355124,6.60407461,141.06,140.97,2.39127194]
[1641812355325,4.0,141.05,140.97,2.39127194]
[1641812355528,2.0,141.02,140.97,2.39127194]
[1641812355825,7.668,141.02,140.98,0.80324289]
[1641812356625,11.668,141.02,140.98,0.80324289]
[1641812357026,4.0,141.01,140.98,0.80324289]
[1641812357425,4.0,141.01,140.94,0.80324289]
[1641812357625,4.0,141.01,140.91,15.01706266]
[1641812358026,17.34129609,141.02,140.91,15.01706266]
[1641812358228,11.67329609,141.02,140.92,0.80340856]
[1641812358426,11.67329609,141.02,140.92,49.65247122]
[1641812359027,7.67329609,141.02,140.93,0.80340856]
[1641812359227,7.67329609,141.02,140.93,8.29340856]
[1641812359429,11.67329609,141.02,140.93,10.6833152]
[1641812359829,11.67329609,141.02,140.94,0.80340856]
[1641812360029,11.67329609,141.02,140.94,3.1933152]
[1641812360431,5.67430623,140.99,140.94,3.1933152]
[1641812360630,5.67430623,140.99,140.95,0.80340856]
[1641812361233,5.67430623,140.99,140.93,0.80340856]
[1641812362431,5.67430623,140.99,140.94,2.39316819]
[1641812362631,5.67430623,140.99,140.94,9.59516819]
[1641812362831,5.67430623,140.99,140.95,0.80340856]
[1641812363035,2.0,141.02,140.95,0.80340856]
[1641812363632,2.0,141.02,140.95,7.89309307]
[1641812364033,2.0,141.02,140.96,2.39240736]
[1641812364233,2.0,141.02,140.96,3.19581592]
[1641812364633,2.0,141.02,140.97,0.80340856]
[1641812364833,2.0,141.02,140.97,6.62640856]
[1641812365033,2.0,141.02,140.97,9.01881592]
[1641812365232,7.67296783,141.02,140.97,9.01881592]
[1641812365433,7.67296783,141.02,140.98,0.80340856]
[1641812365636,4.0,141.01,140.98,0.80340856]
[1641812365834,5.6741102,141.0,140.98,0.80340856]
[1641812366038,9.6741102,141.0,140.98,0.80340856]
[1641812366236,4.01735674,140.99,140.94,8.56e-06]
[1641812366536,5.67506076,140.97,140.94,8.56e-06]
[1641812367036,5.67620765,140.94,140.9,15.01706266]
[1641812367236,11.37020765,140.94,140.9,15.01706266]
[1641812367638,11.37020765,140.94,140.91,0.80356556]
[1641812368540,5.694,140.94,140.91,0.80356556]
[1641812368839,6.81003172,140.97,140.89,8.086]
[1641812369239,6.81003172,140.97,140.92,0.80356556]
[1641812369439,6.81003172,140.97,140.92,6.74856556]
[1641812369641,4.01760033,140.96,140.92,5.945]
[1641812370144,4.01760033,140.96,140.93,0.80356556]
[1641812371058,5.67614253,140.95,140.89,15.82062822]
[1641812371244,4.0,140.92,140.89,15.82062822]
[1641812371445,9.67774925,140.91,140.89,15.82062822]
[1641812371644,9.67774925,140.91,140.9,0.80356556]
[1641812372046,13.69534958,140.91,140.9,0.80356556]
[1641812372646,13.69534958,140.91,140.86,0.80356556]
[1641812372945,4.01760033,140.9,140.86,0.80356556]
[1641812373747,12.76960033,140.9,140.86,0.80356556]
[1641812374246,8.752,140.9,140.86,0.80356556]
[1641812375046,12.752,140.9,140.86,0.80356556]
[1641812375246,8.752,140.9,140.86,0.80356556]
[1641812375648,4.01926185,140.89,140.86,0.80356556]
[1641812375847,9.69767427,140.89,140.86,0.80356556]
[1641812376448,5.67841242,140.89,140.86,0.80356556]
[1641812376847,5.67841242,140.89,140.81,24.72100735]
[1641812376848,5.67841242,140.89,140.83,0.80356556]
[1641812377251,5.67841242,140.89,140.84,2.38795114]
[1641812377648,4.01950489,140.88,140.85,0.80356556]
[1641812377849,5.67924438,140.87,140.85,0.80356556]
[1641812378051,11.60124438,140.87,140.85,0.80356556]
[1641812378452,4.0,140.86,140.85,0.80356556]
[1641812378654,8.01950489,140.86,140.84,0.80356556]
[1641812378853,4.0,140.85,140.84,0.80356556]
[1641812379052,8.01950489,140.86,140.8,33.1516]
[1641812379252,13.69915239,140.86,140.8,33.1516]
[1641812379452,4.01950489,140.85,140.77,48.63966266]
[1641812379654,4.01950489,140.85,140.78,7.09849157]
[1641812379853,5.6796475,140.86,140.78,7.09849157]
[1641812380655,5.6796475,140.86,140.78,11.09849157]
[1641812380856,5.6796475,140.86,140.78,7.09849157]
[1641812381056,5.6796475,140.86,140.79,2.38346306]
[1641812381957,5.6796475,140.86,140.79,11.43046306]
[1641812383160,5.6796475,140.86,140.8,2.38346306]
[1641812383562,2.0,140.87,140.81,4.0]
[1641812383763,2.0,140.87,140.82,4.0]
[1641812383961,2.0,140.87,140.84,7.09546954]
[1641812384963,2.0,140.87,140.85,2.38346306]
[1641812386466,2.0,140.87,140.82,2.38346306]
[1641812388266,6.0,140.87,140.82,2.38346306]
[1641812388468,5.67949953,140.86,140.82,2.38346306]
[1641812388866,9.69985152,140.86,140.82,2.38346306]
[1641812389267,9.67949953,140.86,140.82,2.38346306]
[1641812389466,9.67949953,140.86,140.78,2.38346306]
[1641812390667,4.02050477,140.85,140.78,2.38346306]
[1641812390866,5.68046305,140.84,140.78,2.38346306]
[1641812391668,12.37646305,140.84,140.78,2.38346306]
[1641812393570,6.696,140.84,140.78,6.38346306]
[1641812393769,8.81525656,140.87,140.78,6.38346306]
[1641812393971,8.81525656,140.87,140.78,10.55046306]
[1641812394177,8.81525656,140.87,140.79,0.80398974]
[1641812394371,8.81525656,140.87,140.8,15.01706266]
[1641812394771,8.81525656,140.87,140.82,4.0]
[1641812394972,2.0,140.87,140.82,11.969]
[1641812395372,2.0,140.87,140.82,7.969]
[1641812395775,2.0,140.87,140.83,0.80398974]
[1641812396174,2.0,140.87,140.83,3.1874528]
[1641812396876,4.02050575,140.86,140.84,0.80398974]
[1641812397777,4.02050575,140.86,140.81,0.80398974]
[1641812398175,4.02050575,140.86,140.82,2.3959574]
[1641812398577,4.02050575,140.86,140.83,0.80398974]
[1641812399881,4.02050575,140.86,140.84,2.3959574]
[1641812400682,4.02050575,140.86,140.85,0.80398974]
[1641812402585,4.02050575,140.86,140.82,0.80398974]
[1641812402985,4.02050575,140.86,140.85,0.80398974]
[1641812403385,9.70016707,140.86,140.85,9.074]
[1641812403787,5.67966132,140.86,140.85,9.87798974]
[1641812404187,2.0,140.87,140.85,12.27744704]
[1641812404787,2.0,140.87,140.86,0.80398974]
[1641812405287,2.0,140.87,140.86,3.20344704]
[1641812405690,0.0001,140.87,140.86,3.20344704]
[1641812405889,14.98277995,140.94,140.86,3.20344704]
[1641812406090,4.01912213,140.91,140.86,3.20344704]
[1641812406492,2.01922213,140.94,140.87,0.80398974]
[1641812406789,7.69569614,140.94,140.87,0.80398974]
[1641812407391,9.67647401,140.94,140.88,2.3994573]
[1641812407792,5.67718136,140.92,140.88,2.3994573]
[1641812407994,4.0,140.91,140.89,0.80398974]
[1641812408192,4.87439556,140.89,140.88,2.3994573]
[1641812408595,8.01931586,140.91,140.88,2.3994573]
[1641812408794,4.0,140.91,140.88,2.3994573]
[1641812408994,4.0,140.91,140.83,15.01706266]
[1641812409596,4.01984772,140.9,140.84,0.80396954]
[1641812410699,8.01984772,140.9,140.84,0.80396954]
[1641812410895,8.01984772,140.9,140.85,2.3994573]
[1641812411196,4.01984772,140.9,140.85,2.3994573]
[1641812411596,4.01984772,140.89,140.86,0.80396954]
[1641812412099,4.01984772,140.9,140.86,0.80396954]
[1641812412499,8.01984772,140.9,140.87,2.3994573]
[1641812412998,4.0,140.89,140.87,2.3994573]
[1641812413200,4.0,140.88,140.84,15.01706266]
[1641812413398,16.84731203,140.88,140.84,15.01706266]
[1641812413598,16.84731203,140.88,140.83,24.75216018]
[1641812413799,5.68006417,140.85,140.83,24.75216018]
[1641812414099,14.44906417,140.85,140.83,24.75216018]
[1641812414300,14.44906417,140.85,140.84,0.80415807]
[1641812414703,18.46986287,140.85,140.84,0.80415807]
[1641812414901,5.68080611,140.83,140.8,24.75216018]
[1641812415303,5.68080611,140.83,140.81,0.80418026]
[1641812416202,4.021411,140.82,140.8,0.80418026]
[1641812416605,12.226411,140.82,140.77,24.75216018]
[1641812417004,8.205,140.82,140.77,24.75216018]
[1641812417702,9.6816988,140.81,140.77,24.75216018]
[1641812417905,5.68253009,140.79,140.78,15.01706266]
[1641812418107,14.75853009,140.79,140.78,15.01706266]
[1641812418305,18.75853009,140.79,140.78,15.01706266]
[1641812418506,17.09762132,140.79,140.74,39.93151376]
[1641812418706,4.0,140.78,140.74,39.93151376]
[1641812418907,4.0,140.76,140.75,15.02613903]
[1641812419107,12.186,140.76,140.75,15.02613903]
[1641812419506,12.186,140.76,140.71,39.93151376]
[1641812419705,16.20762132,140.76,140.71,39.93151376]
[1641812419907,12.20762132,140.76,140.71,39.93151376]
[1641812420307,4.02162132,140.75,140.71,39.93151376]
[1641812420507,4.02162132,140.75,140.68,9.73774132]
[1641812420706,8.186,140.76,140.68,9.73774132]
[1641812421106,12.186,140.76,140.68,9.73774132]
[1641812421408,4.0,140.72,140.68,9.73774132]
[1641812421616,13.111,140.72,140.68,9.73774132]
[1641812422010,13.111,140.72,140.65,39.93151376]
[1641812422011,4.0,140.7,140.65,39.93151376]
[1641812422211,4.0,140.69,140.65,26.93151376]
[1641812422411,4.0,140.67,140.65,2.93151376]
[1641812422611,4.0,140.68,140.65,2.93151376]
[1641812423013,4.0,140.68,140.58,100.7228]
[1641812423014,4.02348439,140.69,140.58,104.7228]
[1641812423213,4.02348439,140.67,140.6,4.0]
[1641812423412,4.02348439,140.67,140.63,4.0]
[1641812423613,4.02348439,140.71,140.63,4.0]
[1641812423911,4.02348439,140.71,140.63,13.373]
[1641812424111,34.0526,140.73,140.63,13.373]
[1641812424112,5.68476888,140.73,140.63,13.373]
[1641812424513,5.68476888,140.73,140.64,4.0]
[1641812424914,5.68476888,140.73,140.63,13.373]
[1641812425313,5.68476888,140.73,140.65,11.10479574]
[1641812425516,4.0,140.79,140.66,4.0]
[1641812425716,4.0,140.79,140.68,7.10328172]
[1641812426013,4.0,140.78,140.68,7.10328172]
[1641812426215,5.68414908,140.75,140.68,7.10328172]
[1641812426614,9.70788745,140.75,140.69,4.0]
[1641812426818,9.70788745,140.75,140.69,8.474]
[1641812427218,5.68414908,140.75,140.69,8.474]
[1641812430623,5.68435985,140.74,140.69,8.474]
[1641812430823,13.24335985,140.74,140.69,8.474]
[1641812431023,13.24335985,140.74,140.65,7.10479574]
[1641812431524,4.02429643,140.73,140.65,7.10479574]
[1641812431923,4.02429643,140.73,140.66,0.80485689]
[1641812432729,4.02429643,140.73,140.66,8.99785689]
[1641812432924,5.68519226,140.72,140.66,8.99785689]
[1641812433424,5.68519226,140.72,140.67,0.80485689]
[1641812434326,5.68519226,140.72,140.66,9.49985689]
[1641812434727,5.68519226,140.72,140.67,0.80485689]
[1641812435529,5.68519226,140.72,140.67,8.28885689]
[1641812435728,11.37063218,140.72,140.67,7.484]
[1641812436130,11.37063218,140.72,140.68,0.80485689]
[1641812437237,5.68543992,140.72,140.68,0.80485689]
[1641812437636,5.68543992,140.72,140.69,4.0]
[1641812437936,6.82086832,140.75,140.69,4.0]
[1641812438135,6.82086832,140.75,140.68,4.80485689]
[1641812438336,6.82086832,140.75,140.7,0.80485689]
[1641812439435,6.82086832,140.75,140.68,0.80485689]
[1641812439636,6.82086832,140.75,140.68,4.80485689]
[1641812439835,6.247,140.77,140.68,4.80485689]
[1641812440235,2.0,140.75,140.67,11.10403865]
[1641812440536,5.68444617,140.74,140.67,7.10403865]
[1641812440736,17.51838951,140.74,140.68,0.80478867]
[1641812441338,4.02394334,140.73,140.65,0.80478867]
[1641812441536,4.02394334,140.73,140.66,4.0]
[1641812441736,4.02394334,140.73,140.65,0.80478867]
[1641812441936,4.02394334,140.73,140.67,0.80478867]
[1641812442336,5.68525783,140.72,140.65,7.90983681]
[1641812442736,5.68605862,140.7,140.65,0.80478867]
[1641812442937,13.79705862,140.7,140.66,0.80478867]
[1641812443437,13.79705862,140.7,140.64,0.80478867]
[1641812443638,8.111,140.7,140.65,4.0]
[1641812443837,8.111,140.7,140.66,4.0]
[1641812444037,8.8209821,140.75,140.66,4.0]
[1641812444238,8.8209821,140.75,140.67,0.80478867]
[1641812444639,8.8209821,140.75,140.67,4.80478867]
[1641812444838,4.02414185,140.74,140.67,4.80478867]
[1641812445038,4.02414185,140.74,140.68,0.80478867]
[1641812446039,4.02414185,140.74,140.67,0.80478867]
[1641812446240,4.02414185,140.74,140.67,4.80478867]
[1641812446942,4.02414185,140.74,140.68,0.80478867]
[1641812447942,4.02414185,140.74,140.67,0.80478867]
[1641812449847,5.6850946,140.72,140.67,0.80478867]
[1641812450247,5.68599663,140.7,140.67,0.80478867]
[1641812450446,14.83299663,140.7,140.67,0.80478867]
[1641812451249,9.147,140.7,140.67,0.80478867]
[1641812452749,14.83308231,140.7,140.67,0.80478867]
[1641812453548,14.83308231,140.7,140.68,2.39861951]
[1641812454147,14.83308231,140.7,140.69,0.80478867]
[1641812454746,18.85800714,140.7,140.69,0.80478867]
[1641812455548,18.85800714,140.7,140.69,8.09378867]
[1641812455549,4.02492483,140.7,140.69,8.09378867]
[1641812455749,4.02492483,140.7,140.69,10.49240818]
[1641812455948,4.02492483,140.72,140.69,10.49240818]
[1641812456349,4.02492483,140.72,140.7,0.80478867]
[1641812456750,4.02492483,140.72,140.7,3.20340818]
[1641812457150,4.88080801,140.71,140.7,2.39861951]
[1641812457549,4.0,140.73,140.67,15.03290388]
[1641812457752,2.0,140.75,140.67,15.03290388]
[1641812458450,4.0246013,140.74,140.68,0.80492026]
[1641812459349,8.0246013,140.74,140.68,0.80492026]
[1641812459550,4.0246013,140.74,140.69,2.39775953]
[1641812459750,4.0246013,140.73,140.69,2.39775953]
[1641812460350,8.0246013,140.73,140.7,0.80492026]
[1641812460551,10.82212061,140.72,140.7,0.80492026]
[1641812460850,10.82273522,140.71,140.65,9.68799426]
[1641812461049,4.0,140.69,140.65,9.68799426]
[1641812461253,12.798,140.69,140.66,15.05213064]
[1641812461850,8.798,140.69,140.66,15.05213064]
[1641812462051,8.798,140.69,140.67,0.80505974]
[1641812462452,8.798,140.69,140.66,0.80505974]
[1641812462853,14.48464355,140.69,140.62,0.80505974]
[1641812465358,4.0255303,140.68,140.62,0.80505974]
[1641812466460,4.0255303,140.68,140.61,0.80505974]
[1641812466660,5.68784327,140.66,140.61,0.80505974]
[1641812466859,14.07984327,140.66,140.61,0.80505974]
[1641812470163,16.07984327,140.66,140.61,0.80505974]
[1641812471167,5.68846042,140.64,140.61,0.80505974]
[1641812472469,2.0,140.66,140.61,0.80505974]
[1641812472968,5.68805615,140.65,140.61,0.80505974]
[1641812473967,12.57505615,140.65,140.61,0.80505974]
[1641812475873,5.68889525,140.63,140.61,0.80505974]
[1641812477074,8.82534496,140.66,140.61,0.80505974]
[1641812477675,5.68849722,140.64,140.6,0.80505974]
[1641812478175,2.0,140.66,140.62,0.80505974]
[1641812478475,2.0,140.66,140.61,0.80505974]
[1641812479077,9.475,140.66,140.61,0.80505974]
[1641812480078,2.0,140.66,140.61,0.80505974]
[1641812480281,2.0,140.66,140.61,4.80505974]
[1641812480578,2.0,140.66,140.61,0.80505974]
[1641812480779,2.0,140.66,140.62,0.80505974]
[1641812481178,2.0,140.66,140.61,0.80505974]
[1641812481781,10.517,140.66,140.61,40.65040727]
[1641812482578,10.517,140.66,140.62,0.80505974]
[1641812483180,10.517,140.66,140.62,4.80505974]
[1641812483381,10.517,140.66,140.62,4.0]
[1641812483681,10.517,140.66,140.61,0.80505974]
[1641812483881,10.517,140.66,140.63,0.80505974]
[1641812484383,10.517,140.66,140.61,40.65040727]
[1641812484984,10.517,140.66,140.62,0.80505974]
[1641812488586,10.517,140.66,140.62,4.0]
[1641812488789,10.517,140.66,140.61,9.68787518]
[1641812488987,10.517,140.66,140.63,0.80505974]
[1641812489591,5.68561611,140.71,140.65,4.0]
[1641812489888,7.10681544,140.77,140.66,4.80505974]
[1641812489889,41.24433977,140.77,140.66,4.80505974]
[1641812490088,6.18482227,140.75,140.66,4.80505974]
[1641812490288,4.02380097,140.74,140.67,36.10145974]
[1641812490688,4.02380097,140.74,140.68,0.80505974]
[1641812491488,4.0,140.72,140.68,0.80505974]
[1641812492090,4.02380097,140.71,140.66,15.04344771]
[1641812492492,4.02380097,140.71,140.69,0.80505974]
[1641812492890,4.02380097,140.71,140.66,0.80505974]
[1641812493693,8.02380097,140.71,140.66,0.80505974]
[1641812493891,4.0,140.71,140.66,0.80505974]
[1641812494291,4.02380097,140.7,140.66,0.80505974]
[1641812494494,4.0,140.69,140.66,0.80505974]
[1641812494692,12.77380097,140.7,140.65,15.04344771]
[1641812494892,4.0,140.68,140.64,24.77571669]
[1641812495693,5.68747297,140.67,140.62,15.04344771]
[1641812495892,13.28047297,140.67,140.62,15.04344771]
[1641812496092,4.02565683,140.66,140.63,0.80513137]
[1641812497291,13.28047297,140.67,140.63,0.80513137]
[1641812497893,13.28047297,140.67,140.63,15.84857908]
[1641812498293,13.28047297,140.67,140.64,0.80513137]
[1641812499796,17.28047297,140.67,140.64,0.80513137]
[1641812499996,13.28047297,140.67,140.64,0.80513137]
[1641812500196,4.02589255,140.66,140.64,0.80513137]
[1641812501200,4.02589255,140.66,140.65,2.3960731]
[1641812501602,4.02589255,140.66,140.62,15.04344771]
[1641812501800,4.0,140.64,140.62,9.3542765]
[1641812502002,4.0,140.64,140.63,0.80531336]
[1641812502003,9.022,140.64,140.63,0.80531336]
[1641812502401,9.022,140.64,140.61,9.3542765]
[1641812503300,9.022,140.64,140.62,0.80525492]
[1641812504100,9.022,140.64,140.6,0.80525492]
[1641812504500,9.022,140.64,140.58,4.0]
[1641812504501,9.022,140.64,140.58,0.80525492]
[1641812505199,4.02626516,140.63,140.58,0.80525492]
[1641812505800,9.022,140.64,140.58,0.80525492]
[1641812507000,6.82560056,140.65,140.58,0.80525492]
[1641812507402,5.688918,140.63,140.58,0.80525492]
[1641812507602,12.286918,140.63,140.58,0.80525492]
[1641812509103,6.598,140.63,140.58,7.91358588]
[1641812509303,2.0,140.67,140.62,4.0]
[1641812509703,2.0,140.67,140.63,0.80525492]
[1641812510706,2.0,140.67,140.62,0.80525492]
[1641812510906,9.219,140.67,140.62,0.80525492]
[1641812511508,4.02553253,140.66,140.62,0.80525492]
[1641812512207,9.71306466,140.66,140.62,0.80525492]
[1641812512708,5.68753213,140.66,140.62,0.80525492]
[1641812514110,4.02593823,140.65,140.62,0.80525492]
[1641812514711,8.02593823,140.65,140.62,0.80525492]
[1641812514912,5.68866582,140.64,140.62,0.80525492]
[1641812515114,14.78166582,140.64,140.61,0.80525492]
[1641812515513,4.02593823,140.63,140.61,0.80525492]
[1641812515914,8.02593823,140.63,140.57,0.80525492]
[1641812516112,5.68946245,140.62,140.57,0.80525492]
[1641812516713,5.68946245,140.62,140.57,10.52422606]
[1641812517617,5.68946245,140.62,140.58,0.80525492]
[1641812518616,9.68946245,140.62,140.58,0.80525492]
[1641812520020,9.69064729,140.59,140.58,0.80525492]
[1641812520224,5.69064729,140.59,140.58,0.80525492]
[1641812521222,10.82730199,140.62,140.58,0.80525492]
[1641812521721,4.0,140.61,140.58,0.80525492]
[1641812521922,4.0,140.61,140.55,64.25882401]
[1641812521923,4.0,140.59,140.56,0.80525492]
[1641812522321,4.0,140.59,140.55,64.25882401]
[1641812522725,4.02753427,140.58,140.55,49.56431867]
[1641812523024,4.02753427,140.58,140.55,9.71897114]
[1641812523224,6.828122,140.6,140.55,9.71897114]
[1641812523823,10.828122,140.6,140.55,9.71897114]
[1641812524027,6.828122,140.6,140.55,9.71897114]
[1641812524325,10.828122,140.6,140.55,9.71897114]
[1641812524526,4.0,140.58,140.52,49.56431867]
[1641812524725,4.02743242,140.59,140.52,49.56431867]
[1641812524726,8.02743242,140.59,140.52,49.56431867]
[1641812524924,6.828122,140.6,140.52,49.56431867]
[1641812525525,6.8271175,140.62,140.52,62.79431867]
[1641812525729,6.8271175,140.62,140.52,18.94897114]
[1641812526126,10.8271175,140.62,140.52,18.94897114]
[1641812526326,8.02725424,140.61,140.52,18.94897114]
[1641812526526,5.69039763,140.59,140.52,18.94897114]
[1641812526726,5.69039763,140.59,140.52,64.26432446]
[1641812527227,9.69039763,140.59,140.52,64.26432446]
[1641812527427,9.69039763,140.59,140.52,49.56431867]
[1641812528228,9.69039763,140.59,140.52,9.71897114]
[1641812528929,5.69162908,140.56,140.52,9.71897114]
[1641812530433,8.82857166,140.59,140.52,9.71897114]
[1641812530633,8.82857166,140.59,140.52,17.26297114]
[1641812531431,8.82857166,140.59,140.54,4.0]
[1641812531834,8.82857166,140.59,140.53,11.11085828]
[1641812532032,8.82857166,140.59,140.54,4.0]
[1641812532232,2.0,140.59,140.53,11.11085828]
[1641812532634,2.0,140.59,140.57,15.03228707]
[1641812533634,2.0,140.59,140.56,9.34108024]
[1641812534434,2.0,140.59,140.52,64.26432446]
[1641812534634,2.0,140.59,140.52,9.71897114]
[1641812534833,2.0,140.59,140.52,13.71897114]
[1641812535034,2.0,140.59,140.53,7.11085828]
[1641812535234,2.0,140.59,140.53,14.40385828]
[1641812537839,2.0,140.59,140.54,0.80555327]
[1641812538940,2.0,140.59,140.53,0.80555327]
[1641812539140,7.69046883,140.59,140.53,0.80555327]
[1641812540041,5.69244868,140.54,140.53,0.80555327]
[1641812540743,9.72205834,140.54,140.53,0.80555327]
[1641812541341,9.72205834,140.54,140.46,21.56431867]
[1641812541342,5.69392622,140.51,140.46,21.56431867]
[1641812541542,4.0,140.48,140.46,21.56431867]
[1641812541841,13.15001654,140.48,140.46,21.56431867]
[1641812542242,13.15001654,140.48,140.42,59.76092992]
[1641812542542,13.15001654,140.48,140.42,2.38837932]
[1641812542543,7.455,140.48,140.42,2.38837932]
[1641812542743,7.455,140.48,140.43,0.80607222]
[1641812543144,13.14978015,140.48,140.43,0.80607222]
[1641812543346,13.14978015,140.48,140.44,2.38837932]
[1641812543744,13.14978015,140.48,140.45,0.80607222]
[1641812545346,7.455,140.48,140.46,2.38837932]
[1641812545546,6.83208669,140.52,140.46,2.38837932]
[1641812545748,10.83208669,140.52,140.46,2.38837932]
[1641812545948,4.03040136,140.51,140.47,0.80607222]
[1641812546447,5.69434079,140.5,140.47,0.80607222]
[1641812547048,32.9702,140.54,140.47,0.80607222]
[1641812547248,5.69316301,140.52,140.43,0.80607222]
[1641812547750,4.03031417,140.51,140.43,4.80607222]
[1641812547948,4.03031417,140.51,140.43,0.80607222]
[1641812548149,4.03031417,140.51,140.44,0.80607222]
[1641812548350,4.03031417,140.51,140.44,3.19062341]
[1641812548851,4.03031417,140.51,140.45,2.38455119]
[1641812549052,4.03031417,140.51,140.45,3.19062341]
[1641812549551,4.03031417,140.51,140.46,0.80607222]
[1641812549756,4.03031417,140.51,140.46,3.19062341]
[1641812550355,4.03031417,140.51,140.47,2.38455119]